[Event "December 5 Early 2023"]
[Site "https://www.chess.com"]
[Date "2023.12.05"]
[Round "9"]
[White "Latorre, Vincent"]
[Black "Papasimakopoulos, Alexandros"]
[Result "0-1"]
[Board "105"]
[TimeControl "180+1"]
[WhiteFideId "2636891"]
[BlackFideId "4244125"]
[WhiteElo "2434"]
[BlackElo "2634"]
[WhiteTeam "CAN"]
[BlackTeam "GRE"]
[WhiteClock "0:00:01"]
[BlackClock "0:00:26"]

1. e4 {[%clk 0:03:00]}  e6 {[%clk 0:02:52]} 2. d4 {[%clk 0:02:57]}  d5 {[%clk 0:02:52]} 3. e5 {[%clk 0:02:57]}  c5 {[%clk 0:02:50]} 4. c3 {[%clk 0:02:57]}  Nc6 {[%clk 0:02:50]} 5. Nf3 {[%clk 0:02:58]}  Bd7 {[%clk 0:02:50]} 6. Bd3 {[%clk 0:02:44]}  cxd4 {[%clk 0:02:39]} 7. cxd4 {[%clk 0:02:45]}  Qb6 {[%clk 0:02:39]} 8. O-O {[%clk 0:02:18]}  Nxd4 {[%clk 0:02:36]} 9. Nxd4 {[%clk 0:02:16]}  Qxd4 {[%clk 0:02:37]} 10. Nc3 {[%clk 0:02:17]}  a6 {[%clk 0:02:35]} 11. Be3 {[%clk 0:02:14]}  Qh4 {[%clk 0:02:32]} 12. f4 {[%clk 0:02:11]}  Nh6 {[%clk 0:02:22]} 13. g3 {[%clk 0:01:47]}  Qd8 {[%clk 0:02:20]} 14. f5 {[%clk 0:01:42]}  Nxf5 {[%clk 0:02:13]} 15. Bxf5 {[%clk 0:01:42]}  exf5 {[%clk 0:02:14]} 16. Nxd5 {[%clk 0:01:43]}  Be6 {[%clk 0:01:59]} 17. Nf4 {[%clk 0:01:24]}  Qxd1 {[%clk 0:01:54]} 18. Rfxd1 {[%clk 0:01:25]}  Rc8 {[%clk 0:01:49]} 19. Nxe6 {[%clk 0:01:23]}  fxe6 {[%clk 0:01:48]} 20. Rac1 {[%clk 0:01:23]}  Rc6 {[%clk 0:01:34]} 21. Rxc6 {[%clk 0:01:19]}  bxc6 {[%clk 0:01:35]} 22. Rc1 {[%clk 0:01:16]}  Kd7 {[%clk 0:01:35]} 23. Rc4 {[%clk 0:01:10]}  Be7 {[%clk 0:01:34]} 24. Ra4 {[%clk 0:01:08]}  Ra8 {[%clk 0:01:34]} 25. b4 {[%clk 0:01:04]}  Kc7 {[%clk 0:01:32]} 26. Bc5 {[%clk 0:01:01]}  Bxc5+ {[%clk 0:01:29]} 27. bxc5 {[%clk 0:01:02]}  a5 {[%clk 0:01:22]} 28. Rd4 {[%clk 0:01:01]}  Rb8 {[%clk 0:01:17]} 29. Rd6 {[%clk 0:00:59]}  Rb5 {[%clk 0:01:16]} 30. Rxe6 {[%clk 0:00:59]}  Rxc5 {[%clk 0:01:16]} 31. Re7+ {[%clk 0:01:00]}  Kb6 {[%clk 0:01:16]} 32. e6 {[%clk 0:00:46]}  g5 {[%clk 0:01:05]} 33. Rxh7 {[%clk 0:00:41]}  Re5 {[%clk 0:01:05]} 34. e7 {[%clk 0:00:41]}  g4 {[%clk 0:00:58]} 35. Rf7 {[%clk 0:00:33]}  c5 {[%clk 0:00:55]} 36. Rxf5 {[%clk 0:00:24]}  Rxe7 {[%clk 0:00:54]} 37. a4 {[%clk 0:00:24]}  c4 {[%clk 0:00:39]} 38. Rb5+ {[%clk 0:00:23]}  Kc6 {[%clk 0:00:39]} 39. Rf5 {[%clk 0:00:03]}  Re4 {[%clk 0:00:36]} 40. Kf2 {[%clk 0:00:02]}  c3 {[%clk 0:00:35]} 41. Rf8 {[%clk 0:00:02]}  Kc5 {[%clk 0:00:29]} 42. Rc8+ {[%clk 0:00:02]}  Kb4 {[%clk 0:00:28]} 43. Rc7 {[%clk 0:00:01]}  Kb3 {[%clk 0:00:27]} 44. h4 {[%clk 0:00:01]}  gxh3 {[%clk 0:00:26]} 45. g4 {[%clk 0:00:01]}  Rxg4 {[%clk 0:00:26]} 0-1

[Event "December 5 Early 2023"]
[Site "https://www.chess.com"]
[Date "2023.12.05"]
[Round "9"]
[White "Ovetchkin, Roman"]
[Black "Azar, Sebastien"]
[Result "1/2-1/2"]
[Board "106"]
[TimeControl "180+1"]
[WhiteFideId "4119991"]
[BlackFideId "2640198"]
[WhiteElo "2629"]
[BlackElo "2431"]
[WhiteTeam "RUS"]
[BlackTeam "CAN"]
[WhiteClock "0:00:16"]
[BlackClock "0:00:07"]

1. d4 {[%clk 0:03:00]}  d5 {[%clk 0:02:57]} 2. c4 {[%clk 0:03:00]}  c6 {[%clk 0:02:57]} 3. Nf3 {[%clk 0:02:59]}  Nf6 {[%clk 0:02:57]} 4. Qc2 {[%clk 0:02:58]}  dxc4 {[%clk 0:02:57]} 5. e4 {[%clk 0:02:58]}  b5 {[%clk 0:02:50]} 6. b3 {[%clk 0:02:57]}  cxb3 {[%clk 0:02:45]} 7. axb3 {[%clk 0:02:58]}  a5 {[%clk 0:02:42]} 8. Bd2 {[%clk 0:02:57]}  b4 {[%clk 0:02:36]} 9. Bd3 {[%clk 0:02:39]}  e6 {[%clk 0:02:33]} 10. O-O {[%clk 0:02:38]}  Bb7 {[%clk 0:02:27]} 11. Rc1 {[%clk 0:02:32]}  Nbd7 {[%clk 0:02:24]} 12. e5 {[%clk 0:02:28]}  Nd5 {[%clk 0:02:24]} 13. Bxh7 {[%clk 0:02:28]}  c5 {[%clk 0:02:06]} 14. Bg5 {[%clk 0:01:53]}  Be7 {[%clk 0:01:52]} 15. Bxe7 {[%clk 0:01:49]}  Qxe7 {[%clk 0:01:53]} 16. Be4 {[%clk 0:01:49]}  cxd4 {[%clk 0:01:40]} 17. Bxd5 {[%clk 0:01:48]}  Bxd5 {[%clk 0:01:38]} 18. Nbd2 {[%clk 0:01:49]}  g5 {[%clk 0:01:31]} 19. h3 {[%clk 0:01:47]}  Kf8 {[%clk 0:01:04]} 20. Qd3 {[%clk 0:01:35]}  Kg7 {[%clk 0:00:42]} 21. Qxd4 {[%clk 0:01:33]}  Rh6 {[%clk 0:00:38]} 22. Rc7 {[%clk 0:01:29]}  g4 {[%clk 0:00:36]} 23. Qxg4+ {[%clk 0:01:24]}  Rg6 {[%clk 0:00:37]} 24. Qf4 {[%clk 0:01:23]}  Rh8 {[%clk 0:00:32]} 25. h4 {[%clk 0:01:16]}  Rh5 {[%clk 0:00:25]} 26. Rxa5 {[%clk 0:01:06]}  Qd8 {[%clk 0:00:20]} 27. Raa7 {[%clk 0:01:06]}  Rf5 {[%clk 0:00:16]} 28. Qe3 {[%clk 0:00:53]}  Nxe5 {[%clk 0:00:12]} 29. Nxe5 {[%clk 0:00:47]}  Rxg2+ {[%clk 0:00:12]} 30. Kf1 {[%clk 0:00:48]}  Rfxf2+ {[%clk 0:00:07]} 31. Qxf2 {[%clk 0:00:38]}  Rxf2+ {[%clk 0:00:06]} 32. Kxf2 {[%clk 0:00:38]}  Qxh4+ {[%clk 0:00:07]} 33. Ke2 {[%clk 0:00:36]}  Qh2+ {[%clk 0:00:07]} 34. Kd3 {[%clk 0:00:36]}  Qxe5 {[%clk 0:00:07]} 35. Rxf7+ {[%clk 0:00:36]}  Kg6 {[%clk 0:00:08]} 36. Rf1 {[%clk 0:00:28]}  Qd6 {[%clk 0:00:04]} 37. Ke2 {[%clk 0:00:21]}  Qe5+ {[%clk 0:00:03]} 38. Kd1 {[%clk 0:00:21]}  Qc3 {[%clk 0:00:03]} 39. Rg1+ {[%clk 0:00:17]}  Kf6 {[%clk 0:00:03]} 40. Rf1+ {[%clk 0:00:17]}  Ke5 {[%clk 0:00:03]} 41. Re1+ {[%clk 0:00:17]}  Kd6 {[%clk 0:00:04]} 42. Ra6+ {[%clk 0:00:17]}  Kc7 {[%clk 0:00:03]} 43. Raxe6 {[%clk 0:00:16]}  Bxb3+ {[%clk 0:00:02]} 44. Nxb3 {[%clk 0:00:15]}  Qxb3+ {[%clk 0:00:03]} 45. Kd2 {[%clk 0:00:15]}  Qc3+ {[%clk 0:00:03]} 46. Kd1 {[%clk 0:00:15]}  b3 {[%clk 0:00:04]} 47. Re7+ {[%clk 0:00:16]}  Kd6 {[%clk 0:00:03]} 48. R7e6+ {[%clk 0:00:15]}  Kd7 {[%clk 0:00:03]} 49. Re7+ {[%clk 0:00:15]}  Kd6 {[%clk 0:00:04]} 50. R7e6+ {[%clk 0:00:15]}  Kd5 {[%clk 0:00:04]} 51. R6e5+ {[%clk 0:00:14]}  Qxe5 {[%clk 0:00:03]} 52. Rxe5+ {[%clk 0:00:14]}  Kxe5 {[%clk 0:00:04]} 53. Kc1 {[%clk 0:00:14]}  Kd4 {[%clk 0:00:04]} 54. Kb2 {[%clk 0:00:14]}  Kc4 {[%clk 0:00:05]} 55. Kb1 {[%clk 0:00:15]}  Kc3 {[%clk 0:00:06]} 56. Kc1 {[%clk 0:00:15]}  Kc4 {[%clk 0:00:06]} 57. Kb2 {[%clk 0:00:15]}  Kb4 {[%clk 0:00:07]} 58. Kb1 {[%clk 0:00:16]}  Ka4 {[%clk 0:00:07]} 59. Kb2 {[%clk 0:00:16]}  Kb5 {[%clk 0:00:07]} 60. Kxb3 {[%clk 0:00:16]} 1/2-1/2

[Event "December 5 Early 2023"]
[Site "https://www.chess.com"]
[Date "2023.12.05"]
[Round "9"]
[White "Vorons, Uldis"]
[Black "Baches Garcia, Guillermo"]
[Result "1-0"]
[Board "109"]
[TimeControl "180+1"]
[WhiteFideId "11611758"]
[BlackFideId "2209764"]
[WhiteElo "2315"]
[BlackElo "2514"]
[WhiteTeam "LAT"]
[BlackTeam "ESP"]
[WhiteClock "0:01:37"]
[BlackClock "0:00:32"]

1. e4 {[%clk 0:02:55]}  d5 {[%clk 0:03:00]} 2. exd5 {[%clk 0:02:50]}  Qxd5 {[%clk 0:03:01]} 3. Nc3 {[%clk 0:02:50]}  Qa5 {[%clk 0:03:01]} 4. d4 {[%clk 0:02:50]}  Nf6 {[%clk 0:03:01]} 5. Nf3 {[%clk 0:02:51]}  Bf5 {[%clk 0:03:01]} 6. Ne5 {[%clk 0:02:47]}  c6 {[%clk 0:03:01]} 7. g4 {[%clk 0:02:43]}  Be6 {[%clk 0:03:01]} 8. Bd2 {[%clk 0:02:39]}  Nbd7 {[%clk 0:02:56]} 9. g5 {[%clk 0:02:22]}  Nd5 {[%clk 0:02:47]} 10. Nxd7 {[%clk 0:02:18]}  Bxd7 {[%clk 0:02:40]} 11. Ne4 {[%clk 0:01:54]}  Qb6 {[%clk 0:02:28]} 12. c4 {[%clk 0:01:44]}  Qxd4 {[%clk 0:02:23]} 13. Qe2 {[%clk 0:01:42]}  Qxb2 {[%clk 0:01:30]} 14. Nd6+ {[%clk 0:01:39]}  Kd8 {[%clk 0:01:31]} 15. Ba5+ {[%clk 0:01:39]}  b6 {[%clk 0:01:23]} 16. Nxf7+ {[%clk 0:01:36]}  Kc7 {[%clk 0:00:32]} 17. Qxb2 {[%clk 0:01:37]} 1-0

[Event "December 5 Early 2023"]
[Site "https://www.chess.com"]
[Date "2023.12.05"]
[Round "9"]
[White "Kurmangaliyeva, Liya"]
[Black "Shubhi Gupta"]
[Result "1/2-1/2"]
[Board "110"]
[TimeControl "180+1"]
[WhiteFideId "13725831"]
[BlackFideId "25195425"]
[WhiteElo "2503"]
[BlackElo "2302"]
[WhiteTeam "KAZ"]
[BlackTeam "IND"]
[WhiteClock "0:00:24"]
[BlackClock "0:00:16"]

1. d4 {[%clk 0:03:00]}  d5 {[%clk 0:02:59]} 2. c4 {[%clk 0:03:00]}  e6 {[%clk 0:02:59]} 3. Nf3 {[%clk 0:03:00]}  Nf6 {[%clk 0:02:59]} 4. g3 {[%clk 0:03:00]}  Bb4+ {[%clk 0:02:59]} 5. Nbd2 {[%clk 0:02:58]}  O-O {[%clk 0:02:57]} 6. Bg2 {[%clk 0:02:58]}  dxc4 {[%clk 0:02:43]} 7. O-O {[%clk 0:02:58]}  c5 {[%clk 0:02:43]} 8. dxc5 {[%clk 0:02:54]}  Bxc5 {[%clk 0:02:44]} 9. Qc2 {[%clk 0:02:46]}  Nc6 {[%clk 0:02:38]} 10. Nxc4 {[%clk 0:02:42]}  Qe7 {[%clk 0:02:34]} 11. a3 {[%clk 0:02:33]}  Bd7 {[%clk 0:02:31]} 12. b4 {[%clk 0:02:28]}  Nd4 {[%clk 0:02:21]} 13. Qb2 {[%clk 0:02:22]}  Nxf3+ {[%clk 0:02:16]} 14. Bxf3 {[%clk 0:02:22]}  Bb6 {[%clk 0:01:52]} 15. Nxb6 {[%clk 0:02:18]}  axb6 {[%clk 0:01:53]} 16. Bxb7 {[%clk 0:02:19]}  Ra7 {[%clk 0:01:51]} 17. Bg2 {[%clk 0:02:16]}  Rc8 {[%clk 0:01:51]} 18. Rd1 {[%clk 0:02:10]}  Ba4 {[%clk 0:01:46]} 19. Re1 {[%clk 0:02:09]}  Rac7 {[%clk 0:01:42]} 20. Bf4 {[%clk 0:02:05]}  Rc2 {[%clk 0:01:41]} 21. Qd4 {[%clk 0:02:05]}  Nd7 {[%clk 0:01:27]} 22. Bd6 {[%clk 0:01:58]}  Qg5 {[%clk 0:01:15]} 23. h4 {[%clk 0:01:58]}  Qd2 {[%clk 0:00:56]} 24. Qxd2 {[%clk 0:01:43]}  Rxd2 {[%clk 0:00:57]} 25. Bf4 {[%clk 0:01:43]}  Rb2 {[%clk 0:00:56]} 26. Be4 {[%clk 0:01:38]}  f5 {[%clk 0:00:54]} 27. Bb7 {[%clk 0:01:32]}  Rcc2 {[%clk 0:00:49]} 28. Rac1 {[%clk 0:00:57]}  Rxe2 {[%clk 0:00:34]} 29. Rxe2 {[%clk 0:00:57]}  Rxe2 {[%clk 0:00:35]} 30. Rc7 {[%clk 0:00:56]}  Rc2 {[%clk 0:00:29]} 31. Rxc2 {[%clk 0:00:48]}  Bxc2 {[%clk 0:00:30]} 32. Bc6 {[%clk 0:00:47]}  Nf6 {[%clk 0:00:19]} 33. a4 {[%clk 0:00:46]}  Nd5 {[%clk 0:00:18]} 34. a5 {[%clk 0:00:41]}  Nxb4 {[%clk 0:00:15]} 35. Bd7 {[%clk 0:00:34]}  bxa5 {[%clk 0:00:14]} 36. Bxe6+ {[%clk 0:00:34]}  Kh8 {[%clk 0:00:15]} 37. Bd6 {[%clk 0:00:32]}  Nc6 {[%clk 0:00:13]} 38. Bd7 {[%clk 0:00:27]}  Nd4 {[%clk 0:00:12]} 39. Kf1 {[%clk 0:00:24]}  Bd3+ {[%clk 0:00:11]} 40. Ke1 {[%clk 0:00:22]}  Bb5 {[%clk 0:00:12]} 41. Bc5 {[%clk 0:00:19]}  Bxd7 {[%clk 0:00:11]} 42. Bxd4 {[%clk 0:00:19]}  Kg8 {[%clk 0:00:12]} 43. Kd2 {[%clk 0:00:20]}  Kf7 {[%clk 0:00:13]} 44. Ke3 {[%clk 0:00:20]}  h6 {[%clk 0:00:13]} 45. Kf4 {[%clk 0:00:20]}  g6 {[%clk 0:00:13]} 46. Ke5 {[%clk 0:00:21]}  Ke7 {[%clk 0:00:13]} 47. Bc3 {[%clk 0:00:21]}  a4 {[%clk 0:00:13]} 48. Bb4+ {[%clk 0:00:21]}  Kf7 {[%clk 0:00:14]} 49. Ba3 {[%clk 0:00:22]}  Bb5 {[%clk 0:00:14]} 50. Bb4 {[%clk 0:00:23]}  Bd7 {[%clk 0:00:15]} 51. Ba3 {[%clk 0:00:23]}  Bb5 {[%clk 0:00:15]} 52. Bb4 {[%clk 0:00:24]}  Be8 {[%clk 0:00:15]} 53. Ba3 {[%clk 0:00:24]}  Bb5 {[%clk 0:00:16]} 1/2-1/2

[Event "December 5 Early 2023"]
[Site "https://www.chess.com"]
[Date "2023.12.05"]
[Round "9"]
[White "Kaplan, Avi Harrison"]
[Black "Bold, Andre"]
[Result "0-1"]
[Board "111"]
[TimeControl "180+1"]
[WhiteFideId "30934559"]
[BlackFideId "16208471"]
[WhiteElo "2460"]
[BlackElo "2485"]
[WhiteTeam "USA"]
[BlackTeam "GER"]
[WhiteClock "0:00:27"]
[BlackClock "0:01:52"]

1. e4 {[%clk 0:02:56]}  c6 {[%clk 0:02:59]} 2. d4 {[%clk 0:02:54]}  d5 {[%clk 0:03:00]} 3. exd5 {[%clk 0:02:54]}  cxd5 {[%clk 0:03:01]} 4. Bd3 {[%clk 0:02:51]}  Nf6 {[%clk 0:03:02]} 5. Bf4 {[%clk 0:02:48]}  Nc6 {[%clk 0:03:03]} 6. c3 {[%clk 0:02:47]}  Bg4 {[%clk 0:03:02]} 7. Qb3 {[%clk 0:02:46]}  Qd7 {[%clk 0:03:02]} 8. Nd2 {[%clk 0:02:46]}  e6 {[%clk 0:03:02]} 9. Ngf3 {[%clk 0:02:46]}  Bd6 {[%clk 0:03:02]} 10. Bxd6 {[%clk 0:02:46]}  Qxd6 {[%clk 0:03:01]} 11. O-O {[%clk 0:02:46]}  Bxf3 {[%clk 0:03:00]} 12. Nxf3 {[%clk 0:02:47]}  O-O {[%clk 0:03:01]} 13. Rfe1 {[%clk 0:02:46]}  Qc7 {[%clk 0:03:01]} 14. Ne5 {[%clk 0:02:45]}  Nd7 {[%clk 0:02:59]} 15. f4 {[%clk 0:02:42]}  Rae8 {[%clk 0:02:51]} 16. Re3 {[%clk 0:02:39]}  f5 {[%clk 0:02:50]} 17. Rae1 {[%clk 0:02:37]}  Nf6 {[%clk 0:02:49]} 18. Nxc6 {[%clk 0:02:34]}  bxc6 {[%clk 0:02:48]} 19. Rxe6 {[%clk 0:02:32]}  Ne4 {[%clk 0:02:46]} 20. Bxe4 {[%clk 0:02:22]}  fxe4 {[%clk 0:02:30]} 21. R6xe4 {[%clk 0:02:20]}  Rxe4 {[%clk 0:02:26]} 22. Rxe4 {[%clk 0:02:21]}  Rxf4 {[%clk 0:02:19]} 23. Rxf4 {[%clk 0:02:06]}  Qxf4 {[%clk 0:02:20]} 24. Qd1 {[%clk 0:02:05]}  Qe3+ {[%clk 0:02:16]} 25. Kf1 {[%clk 0:02:04]}  h6 {[%clk 0:02:15]} 26. Qe2 {[%clk 0:02:02]}  Qc1+ {[%clk 0:02:14]} 27. Kf2 {[%clk 0:02:01]}  Qf4+ {[%clk 0:02:13]} 28. Qf3 {[%clk 0:01:31]}  Qxh2 {[%clk 0:02:13]} 29. Qf5 {[%clk 0:01:27]}  Qc7 {[%clk 0:02:08]} 30. Qe6+ {[%clk 0:01:25]}  Qf7+ {[%clk 0:02:08]} 31. Qxf7+ {[%clk 0:01:24]}  Kxf7 {[%clk 0:02:09]} 32. Kf3 {[%clk 0:01:24]}  Kf6 {[%clk 0:02:08]} 33. Kf4 {[%clk 0:01:23]}  g5+ {[%clk 0:02:07]} 34. Kf3 {[%clk 0:01:23]}  h5 {[%clk 0:02:07]} 35. g4 {[%clk 0:01:02]}  h4 {[%clk 0:02:06]} 36. b3 {[%clk 0:01:01]}  Ke6 {[%clk 0:02:03]} 37. a4 {[%clk 0:00:57]}  Kd6 {[%clk 0:01:59]} 38. b4 {[%clk 0:00:56]}  a5 {[%clk 0:01:58]} 39. Kg2 {[%clk 0:00:49]}  Kc7 {[%clk 0:01:51]} 40. Kh3 {[%clk 0:00:48]}  c5 {[%clk 0:01:44]} 41. bxc5 {[%clk 0:00:20]}  Kc6 {[%clk 0:01:44]} 42. Kh2 {[%clk 0:00:20]}  Kc7 {[%clk 0:01:44]} 43. Kg2 {[%clk 0:00:21]}  Kc6 {[%clk 0:01:45]} 44. Kf2 {[%clk 0:00:21]}  Kc7 {[%clk 0:01:45]} 45. Ke2 {[%clk 0:00:22]}  Kc6 {[%clk 0:01:46]} 46. Ke3 {[%clk 0:00:22]}  Kd7 {[%clk 0:01:46]} 47. Kf2 {[%clk 0:00:23]}  Ke7 {[%clk 0:01:46]} 48. Kf1 {[%clk 0:00:23]}  Ke8 {[%clk 0:01:46]} 49. Kg1 {[%clk 0:00:23]}  Kd8 {[%clk 0:01:47]} 50. Kh1 {[%clk 0:00:24]}  Kc8 {[%clk 0:01:47]} 51. Kh2 {[%clk 0:00:25]}  Kb8 {[%clk 0:01:48]} 52. Kh3 {[%clk 0:00:25]}  Ka8 {[%clk 0:01:49]} 53. Kg2 {[%clk 0:00:24]}  Ka7 {[%clk 0:01:49]} 54. Kf3 {[%clk 0:00:25]}  Ka6 {[%clk 0:01:49]} 55. Ke3 {[%clk 0:00:24]}  Kb7 {[%clk 0:01:50]} 56. Ke2 {[%clk 0:00:23]}  Kc6 {[%clk 0:01:50]} 57. Ke1 {[%clk 0:00:24]}  Kc7 {[%clk 0:01:51]} 58. Kf2 {[%clk 0:00:24]}  Kd7 {[%clk 0:01:51]} 59. Kf1 {[%clk 0:00:25]}  Ke7 {[%clk 0:01:51]} 60. Kg2 {[%clk 0:00:25]}  Kf8 {[%clk 0:01:52]} 61. Kg1 {[%clk 0:00:24]}  Kf7 {[%clk 0:01:52]} 62. Kh1 {[%clk 0:00:24]}  Kf6 {[%clk 0:01:52]} 63. Kh2 {[%clk 0:00:25]}  Ke7 {[%clk 0:01:52]} 64. Kh3 {[%clk 0:00:26]}  Kd7 {[%clk 0:01:53]} 65. Kg2 {[%clk 0:00:26]}  Ke8 {[%clk 0:01:53]} 66. Kf2 {[%clk 0:00:27]}  Kd8 {[%clk 0:01:54]} 67. Kf3 {[%clk 0:00:27]}  Kc8 {[%clk 0:01:55]} 68. Kg2 {[%clk 0:00:28]}  Kb7 {[%clk 0:01:55]} 69. Kh1 {[%clk 0:00:28]}  Kb8 {[%clk 0:01:56]} 70. c4 {[%clk 0:00:28]}  dxc4 {[%clk 0:01:54]} 71. d5 {[%clk 0:00:28]}  c3 {[%clk 0:01:53]} 72. d6 {[%clk 0:00:28]}  Kc8 {[%clk 0:01:52]} 73. c6 {[%clk 0:00:27]}  c2 {[%clk 0:01:52]} 0-1

[Event "December 5 Early 2023"]
[Site "https://www.chess.com"]
[Date "2023.12.05"]
[Round "9"]
[White "Martin, Lewis"]
[Black "Kovalevsky, Stanislav"]
[Result "0-1"]
[Board "112"]
[TimeControl "180+1"]
[WhiteFideId "410551"]
[BlackFideId "13508598"]
[WhiteElo "2281"]
[BlackElo "2479"]
[WhiteTeam "ENG"]
[BlackTeam "FID"]
[WhiteClock "0:00:18"]
[BlackClock "0:00:12"]

1. c4 {[%clk 0:03:00]}  c6 {[%clk 0:02:59]} 2. g3 {[%clk 0:03:00]}  d5 {[%clk 0:03:00]} 3. Bg2 {[%clk 0:02:59]}  Nf6 {[%clk 0:03:00]} 4. cxd5 {[%clk 0:02:56]}  cxd5 {[%clk 0:03:00]} 5. d3 {[%clk 0:02:54]}  Nc6 {[%clk 0:03:01]} 6. Nf3 {[%clk 0:02:53]}  Bg4 {[%clk 0:03:01]} 7. Nbd2 {[%clk 0:02:51]}  e6 {[%clk 0:02:59]} 8. O-O {[%clk 0:02:51]}  Bc5 {[%clk 0:02:59]} 9. a3 {[%clk 0:02:48]}  a5 {[%clk 0:02:58]} 10. b3 {[%clk 0:02:44]}  O-O {[%clk 0:02:55]} 11. Bb2 {[%clk 0:02:44]}  Re8 {[%clk 0:02:55]} 12. Rc1 {[%clk 0:02:43]}  Qb6 {[%clk 0:02:53]} 13. h3 {[%clk 0:02:32]}  Bh5 {[%clk 0:02:51]} 14. Qc2 {[%clk 0:02:23]}  Bd4 {[%clk 0:02:39]} 15. e3 {[%clk 0:02:16]}  Bxb2 {[%clk 0:02:33]} 16. Qxb2 {[%clk 0:02:17]}  Bg6 {[%clk 0:02:27]} 17. d4 {[%clk 0:02:13]}  Rec8 {[%clk 0:02:15]} 18. Rc3 {[%clk 0:02:06]}  h6 {[%clk 0:01:27]} 19. Rfc1 {[%clk 0:02:05]}  Na7 {[%clk 0:01:26]} 20. Ne5 {[%clk 0:02:02]}  Rxc3 {[%clk 0:01:08]} 21. Rxc3 {[%clk 0:02:03]}  Nb5 {[%clk 0:00:45]} 22. Rc5 {[%clk 0:02:01]}  Nd6 {[%clk 0:00:31]} 23. Nxg6 {[%clk 0:01:53]}  fxg6 {[%clk 0:00:31]} 24. f3 {[%clk 0:01:52]}  Nd7 {[%clk 0:00:26]} 25. Rc1 {[%clk 0:01:48]}  Rc8 {[%clk 0:00:24]} 26. Rxc8+ {[%clk 0:01:45]}  Nxc8 {[%clk 0:00:25]} 27. Bf1 {[%clk 0:01:42]}  Nd6 {[%clk 0:00:24]} 28. Qc3 {[%clk 0:01:36]}  Kf7 {[%clk 0:00:20]} 29. Kf2 {[%clk 0:01:35]}  g5 {[%clk 0:00:20]} 30. b4 {[%clk 0:01:31]}  axb4 {[%clk 0:00:20]} 31. axb4 {[%clk 0:01:30]}  Ke7 {[%clk 0:00:20]} 32. Nb3 {[%clk 0:01:29]}  Nf5 {[%clk 0:00:17]} 33. Na5 {[%clk 0:01:13]}  Qd6 {[%clk 0:00:14]} 34. f4 {[%clk 0:01:07]}  gxf4 {[%clk 0:00:13]} 35. exf4 {[%clk 0:01:05]}  Nf6 {[%clk 0:00:13]} 36. Bd3 {[%clk 0:01:01]}  Nxg3 {[%clk 0:00:10]} 37. Kxg3 {[%clk 0:00:55]}  Nh5+ {[%clk 0:00:10]} 38. Kg2 {[%clk 0:00:48]}  Nxf4+ {[%clk 0:00:10]} 39. Kf1 {[%clk 0:00:47]}  Nxd3 {[%clk 0:00:10]} 40. Qxd3 {[%clk 0:00:47]}  Qxb4 {[%clk 0:00:10]} 41. Nb3 {[%clk 0:00:38]}  Qc4 {[%clk 0:00:10]} 42. Qxc4 {[%clk 0:00:37]}  dxc4 {[%clk 0:00:11]} 43. Nc1 {[%clk 0:00:36]}  Kd6 {[%clk 0:00:10]} 44. Ke2 {[%clk 0:00:37]}  Kd5 {[%clk 0:00:11]} 45. Ke3 {[%clk 0:00:38]}  b5 {[%clk 0:00:10]} 46. Ne2 {[%clk 0:00:37]}  b4 {[%clk 0:00:11]} 47. Nf4+ {[%clk 0:00:37]}  Kd6 {[%clk 0:00:11]} 48. Ke4 {[%clk 0:00:34]}  g5 {[%clk 0:00:10]} 49. Ne2 {[%clk 0:00:34]}  h5 {[%clk 0:00:10]} 50. Nc1 {[%clk 0:00:30]}  b3 {[%clk 0:00:10]} 51. Ne2 {[%clk 0:00:30]}  g4 {[%clk 0:00:08]} 52. hxg4 {[%clk 0:00:29]}  hxg4 {[%clk 0:00:09]} 53. Nc3 {[%clk 0:00:29]}  Kc6 {[%clk 0:00:09]} 54. Kf4 {[%clk 0:00:29]}  Kb6 {[%clk 0:00:10]} 55. Kxg4 {[%clk 0:00:29]}  Ka5 {[%clk 0:00:10]} 56. Kf4 {[%clk 0:00:27]}  Kb4 {[%clk 0:00:11]} 57. Nb1 {[%clk 0:00:22]}  c3 {[%clk 0:00:11]} 58. Ke3 {[%clk 0:00:18]}  c2 {[%clk 0:00:12]} 0-1

[Event "December 5 Early 2023"]
[Site "https://www.chess.com"]
[Date "2023.12.05"]
[Round "9"]
[White "Garcia Correa, Jose Ricardo"]
[Black "Dobre, Claudiu-Cristian"]
[Result "0-1"]
[Board "113"]
[TimeControl "180+1"]
[WhiteFideId "5101832"]
[BlackFideId "1211854"]
[WhiteElo "2244"]
[BlackElo "2473"]
[WhiteTeam "MEX"]
[BlackTeam "ROU"]
[WhiteClock "0:00:00"]
[BlackClock "0:00:10"]

1. e4 {[%clk 0:03:00]}  Nc6 {[%clk 0:02:59]} 2. Bc4 {[%clk 0:02:58]}  Nf6 {[%clk 0:02:55]} 3. Nc3 {[%clk 0:02:57]}  Nxe4 {[%clk 0:02:53]} 4. Bxf7+ {[%clk 0:02:56]}  Kxf7 {[%clk 0:02:53]} 5. Nxe4 {[%clk 0:02:57]}  d5 {[%clk 0:02:47]} 6. Ng5+ {[%clk 0:02:56]}  Kg8 {[%clk 0:02:47]} 7. d4 {[%clk 0:02:48]}  e5 {[%clk 0:02:40]} 8. dxe5 {[%clk 0:02:44]}  Nxe5 {[%clk 0:02:38]} 9. N1f3 {[%clk 0:02:43]}  Bg4 {[%clk 0:02:19]} 10. h3 {[%clk 0:02:32]}  Nxf3+ {[%clk 0:02:18]} 11. Nxf3 {[%clk 0:02:32]}  Bh5 {[%clk 0:02:11]} 12. Be3 {[%clk 0:02:22]}  c6 {[%clk 0:02:01]} 13. g4 {[%clk 0:02:18]}  Bg6 {[%clk 0:02:00]} 14. Ne5 {[%clk 0:02:17]}  Be4 {[%clk 0:01:51]} 15. f3 {[%clk 0:02:16]}  Qh4+ {[%clk 0:01:51]} 16. Bf2 {[%clk 0:02:09]}  Qe7 {[%clk 0:01:51]} 17. Qd4 {[%clk 0:01:50]}  Bxc2 {[%clk 0:01:44]} 18. O-O {[%clk 0:01:44]}  Qb4 {[%clk 0:01:28]} 19. Qe3 {[%clk 0:01:38]}  Re8 {[%clk 0:01:28]} 20. Rac1 {[%clk 0:01:15]}  Bg6 {[%clk 0:01:23]} 21. f4 {[%clk 0:01:12]}  Bd6 {[%clk 0:01:20]} 22. Bg3 {[%clk 0:01:04]}  Bc7 {[%clk 0:00:57]} 23. Qe2 {[%clk 0:00:45]}  Qe4 {[%clk 0:00:37]} 24. Qh2 {[%clk 0:00:34]}  Bb6+ {[%clk 0:00:35]} 25. Bf2 {[%clk 0:00:29]}  Bxf2+ {[%clk 0:00:29]} 26. Rxf2 {[%clk 0:00:26]}  Bf7 {[%clk 0:00:20]} 27. Rcc2 {[%clk 0:00:16]}  d4 {[%clk 0:00:19]} 28. Rce2 {[%clk 0:00:16]}  Qb1+ {[%clk 0:00:19]} 29. Rf1 {[%clk 0:00:16]}  Qxa2 {[%clk 0:00:17]} 30. Nxf7 {[%clk 0:00:15]}  Qxf7 {[%clk 0:00:16]} 31. f5 {[%clk 0:00:15]}  h5 {[%clk 0:00:14]} 32. g5 {[%clk 0:00:14]}  d3 {[%clk 0:00:12]} 33. Rd2 {[%clk 0:00:13]}  Qd5 {[%clk 0:00:11]} 34. Qg3 {[%clk 0:00:13]}  Qd4+ {[%clk 0:00:10]} 35. Kh2 {[%clk 0:00:13]}  Qe5 {[%clk 0:00:11]} 36. f6 {[%clk 0:00:11]}  gxf6 {[%clk 0:00:10]} 37. Rxd3 {[%clk 0:00:10]}  h4 {[%clk 0:00:09]} 38. Qxe5 {[%clk 0:00:10]}  fxe5 {[%clk 0:00:09]} 39. Rd7 {[%clk 0:00:08]}  Rh7 {[%clk 0:00:09]} 40. Rd6 {[%clk 0:00:08]}  Rg7 {[%clk 0:00:08]} 41. g6 {[%clk 0:00:08]}  Rge7 {[%clk 0:00:08]} 42. Kg2 {[%clk 0:00:04]}  Kg7 {[%clk 0:00:09]} 43. Rff6 {[%clk 0:00:03]}  e4 {[%clk 0:00:09]} 44. Kf2 {[%clk 0:00:04]}  Rf8 {[%clk 0:00:09]} 45. Rxf8 {[%clk 0:00:01]}  e3+ {[%clk 0:00:09]} 46. Ke2 {[%clk 0:00:00]}  Kxf8 {[%clk 0:00:10]} 0-1